[Event "Late-Titled-Tuesday-Blitz-February-06-2024"]
[Site "Chess.com"]
[Date "2024.02.06"]
[Round "5"]
[White "mitrabhaa"]
[Black "Goryachkina"]
[Result "0-1"]
[WhiteElo "2922"]
[BlackElo "2690"]
[TimeControl "180+1"]
[EndTime "14:56:40 PST"]
[Termination "Goryachkina won by resignation"]

1. Nf3 {[%clk 0:02:45.8]} 1... c5 {[%clk 0:02:59.4]} 2. c4 {[%clk 0:02:45.9]}
2... Nc6 {[%clk 0:02:58.7]} 3. d4 {[%clk 0:02:46.4]} 3... cxd4 {[%clk
0:02:58.7]} 4. Nxd4 {[%clk 0:02:47.3]} 4... Nf6 {[%clk 0:02:57]} 5. Nc3 {[%clk
0:02:47.4]} 5... e6 {[%clk 0:02:56.8]} 6. g3 {[%clk 0:02:47.6]} 6... Qb6 {[%clk
0:02:55.2]} 7. Ndb5 {[%clk 0:02:47.1]} 7... Ne5 {[%clk 0:02:54.1]} 8. Bf4 {[%clk
0:02:41.3]} 8... Nfg4 {[%clk 0:02:45.1]} 9. e3 {[%clk 0:02:40.7]} 9... a6 {[%clk
0:02:42.4]} 10. Qa4 {[%clk 0:02:35.9]} 10... g5 {[%clk 0:02:29]} 11. Bxe5 {[%clk
0:02:26.3]} 11... Nxe5 {[%clk 0:02:28.9]} 12. Be2 {[%clk 0:02:26.5]} 12... Rb8
{[%clk 0:02:19.3]} 13. O-O-O {[%clk 0:01:56.5]} 13... axb5 {[%clk 0:02:08.5]}
14. Nxb5 {[%clk 0:01:57.4]} 14... Nc6 {[%clk 0:02:00.4]} 15. Qb3 {[%clk
0:01:55.6]} 15... Qa5 {[%clk 0:01:54.5]} 16. h4 {[%clk 0:01:51.6]} 16... g4
{[%clk 0:01:36.9]} 17. Bxg4 {[%clk 0:01:50.4]} 17... Bg7 {[%clk 0:01:30.7]} 18.
Nd6+ {[%clk 0:01:38.4]} 18... Ke7 {[%clk 0:01:28.1]} 19. Rd2 {[%clk 0:01:32.7]}
19... Ra8 {[%clk 0:01:05.2]} 20. a3 {[%clk 0:01:28.6]} 20... Qa4 {[%clk
0:00:44.1]} 21. Qb6 {[%clk 0:01:12.5]} 21... Qa5 {[%clk 0:00:40.7]} 22. Qb3
{[%clk 0:01:12]} 22... Qa4 {[%clk 0:00:41]} 23. Qd3 {[%clk 0:01:04.2]} 23... Ne5
{[%clk 0:00:35.8]} 24. Qe4 {[%clk 0:01:04.2]} 24... Qc6 {[%clk 0:00:27.6]} 25.
Be2 {[%clk 0:00:51.3]} 25... Qxe4 {[%clk 0:00:26.2]} 26. Nxe4 {[%clk 0:00:52.2]}
26... b6 {[%clk 0:00:20.3]} 27. Nd6 {[%clk 0:00:51.2]} 27... Ba6 {[%clk
0:00:19.8]} 28. Rhd1 {[%clk 0:00:45.2]} 28... Ra7 {[%clk 0:00:15.1]} 29. f4
{[%clk 0:00:42.4]} 29... Nxc4 {[%clk 0:00:08.1]} 30. Bxc4 {[%clk 0:00:38.7]}
30... Bxc4 {[%clk 0:00:06.7]} 31. Nxc4 {[%clk 0:00:39.6]} 31... Rc7 {[%clk
0:00:05.4]} 32. Kb1 {[%clk 0:00:32.5]} 32... Rxc4 {[%clk 0:00:04.3]} 33. Rxd7+
{[%clk 0:00:33.1]} 33... Kf6 {[%clk 0:00:04.7]} 34. Rb7 {[%clk 0:00:33]} 34...
Rc6 {[%clk 0:00:03.4]} 35. Rdd7 {[%clk 0:00:32.4]} 35... Rf8 {[%clk 0:00:03.8]}
36. g4 {[%clk 0:00:33.1]} 36... h6 {[%clk 0:00:04.1]} 37. Ka2 {[%clk 0:00:27.7]}
37... Kg6 {[%clk 0:00:04.4]} 38. h5+ {[%clk 0:00:27.4]} 38... Kf6 {[%clk
0:00:04.4]} 39. e4 {[%clk 0:00:25.2]} 39... e5 {[%clk 0:00:04.4]} 40. fxe5+
{[%clk 0:00:23.7]} 40... Kxe5 {[%clk 0:00:04.7]} 41. Rxf7 {[%clk 0:00:24.2]}
41... Rxf7 {[%clk 0:00:05]} 42. Rxf7 {[%clk 0:00:25.1]} 42... Bf6 {[%clk
0:00:05.5]} 43. Rh7 {[%clk 0:00:19.9]} 43... Bg5 {[%clk 0:00:05.3]} 44. Rg7
{[%clk 0:00:19.3]} 44... Kxe4 {[%clk 0:00:05.5]} 45. Rg6 {[%clk 0:00:16.3]}
45... Rf6 {[%clk 0:00:03.1]} 46. b4 {[%clk 0:00:14.5]} 46... Kf4 {[%clk
0:00:03.5]} 47. Rg8 {[%clk 0:00:13.6]} 47... Kxg4 {[%clk 0:00:03.8]} 48. a4
{[%clk 0:00:14.5]} 48... Kxh5 {[%clk 0:00:04.3]} 49. Kb3 {[%clk 0:00:15.2]}
49... Kg4 {[%clk 0:00:04.6]} 50. Rd8 {[%clk 0:00:11.4]} 50... h5 {[%clk
0:00:04.1]} 51. Rd4+ {[%clk 0:00:12]} 51... Bf4 {[%clk 0:00:04.4]} 52. a5 {[%clk
0:00:12.6]} 52... bxa5 {[%clk 0:00:04]} 53. bxa5 {[%clk 0:00:13.5]} 53... h4
{[%clk 0:00:04.6]} 54. Ra4 {[%clk 0:00:14.2]} 54... h3 {[%clk 0:00:03.4]} 55. a6
{[%clk 0:00:13.4]} 55... h2 {[%clk 0:00:03.7]} 56. a7 {[%clk 0:00:14]} 56... Rf8
{[%clk 0:00:03.6]} 57. a8=Q {[%clk 0:00:14.9]} 57... Rxa8 {[%clk 0:00:02.3]} 58.
Rxa8 {[%clk 0:00:15.1]} 58... h1=Q {[%clk 0:00:02.6]} 59. Rc8 {[%clk 0:00:16]}
59... Kf3 {[%clk 0:00:02.7]} 60. Rc3+ {[%clk 0:00:16.9]} 60... Kg4 {[%clk
0:00:03.3]} 61. Kc4 {[%clk 0:00:17.3]} 61... Qe4+ {[%clk 0:00:03.5]} 62. Kb3
{[%clk 0:00:17.7]} 62... Qd5+ {[%clk 0:00:03.9]} 63. Kb4 {[%clk 0:00:17.8]}
63... Qd4+ {[%clk 0:00:04.1]} 64. Kb3 {[%clk 0:00:17.9]} 64... Qd5+ {[%clk
0:00:04.4]} 65. Kc2 {[%clk 0:00:17.8]} 65... Qe4+ {[%clk 0:00:04.3]} 66. Kb3
{[%clk 0:00:18.2]} 66... Qe6+ {[%clk 0:00:04]} 67. Kc2 {[%clk 0:00:18.1]} 67...
Be5 {[%clk 0:00:04.5]} 68. Rd3 {[%clk 0:00:16.8]} 68... Qc4+ {[%clk 0:00:04.8]}
69. Kd2 {[%clk 0:00:17.4]} 69... Bf4+ {[%clk 0:00:05.3]} 0-1

[Event "Late-Titled-Tuesday-Blitz-February-06-2024"]
[Site "Chess.com"]
[Date "2024.02.06"]
[Round "5"]
[White "NeverGiveUppp"]
[Black "AsterPhoenix"]
[Result "0-1"]
[WhiteElo "2421"]
[BlackElo "2628"]
[TimeControl "180+1"]
[EndTime "14:56:41 PST"]
[Termination "AsterPhoenix won on time"]

1. e4 {[%clk 0:03:00.9]} 1... c5 {[%clk 0:02:47.3]} 2. Nf3 {[%clk 0:03:00.6]}
2... e6 {[%clk 0:02:47.8]} 3. d4 {[%clk 0:02:59.1]} 3... cxd4 {[%clk 0:02:48.7]}
4. Nxd4 {[%clk 0:02:59.5]} 4... Nf6 {[%clk 0:02:49.4]} 5. Nc3 {[%clk 0:02:59.2]}
5... Nc6 {[%clk 0:02:50.1]} 6. Ndb5 {[%clk 0:02:55.8]} 6... d6 {[%clk
0:02:50.1]} 7. Bf4 {[%clk 0:02:54.6]} 7... e5 {[%clk 0:02:50.6]} 8. Bg5 {[%clk
0:02:54.9]} 8... a6 {[%clk 0:02:51.3]} 9. Na3 {[%clk 0:02:55.1]} 9... b5 {[%clk
0:02:51.9]} 10. Nd5 {[%clk 0:02:55.2]} 10... Be7 {[%clk 0:02:51.6]} 11. Bxf6
{[%clk 0:02:54.8]} 11... Bxf6 {[%clk 0:02:52.5]} 12. c3 {[%clk 0:02:54.7]} 12...
O-O {[%clk 0:02:51.8]} 13. Nc2 {[%clk 0:02:54.3]} 13... Be6 {[%clk 0:02:52.1]}
14. Be2 {[%clk 0:02:45.6]} 14... Bg5 {[%clk 0:02:42.2]} 15. O-O {[%clk
0:02:44.4]} 15... Ne7 {[%clk 0:02:41.5]} 16. Nce3 {[%clk 0:02:41.2]} 16... Rb8
{[%clk 0:02:31.1]} 17. Nxe7+ {[%clk 0:02:37.9]} 17... Qxe7 {[%clk 0:02:32]} 18.
Nd5 {[%clk 0:02:36.8]} 18... Qb7 {[%clk 0:02:32]} 19. g3 {[%clk 0:02:17.1]}
19... f5 {[%clk 0:02:27.3]} 20. Bf3 {[%clk 0:02:13.2]} 20... Bxd5 {[%clk
0:02:17.5]} 21. exd5 {[%clk 0:02:12.8]} 21... b4 {[%clk 0:01:51.7]} 22. c4
{[%clk 0:02:10.3]} 22... Qb6 {[%clk 0:01:52]} 23. Bg2 {[%clk 0:02:02.1]} 23...
Qc5 {[%clk 0:01:49.3]} 24. b3 {[%clk 0:01:58]} 24... a5 {[%clk 0:01:46.2]} 25.
Qh5 {[%clk 0:01:54.3]} 25... Bd2 {[%clk 0:01:41.5]} 26. Rad1 {[%clk 0:01:45.6]}
26... g6 {[%clk 0:01:41.3]} 27. Qe2 {[%clk 0:01:44.1]} 27... Bc3 {[%clk
0:01:41.6]} 28. Qc2 {[%clk 0:01:31.5]} 28... a4 {[%clk 0:01:35.7]} 29. Kh1
{[%clk 0:01:27.1]} 29... Ra8 {[%clk 0:01:31.9]} 30. Qe2 {[%clk 0:00:56.7]} 30...
axb3 {[%clk 0:01:28.3]} 31. axb3 {[%clk 0:00:57.6]} 31... Ra3 {[%clk 0:01:28.2]}
32. Rb1 {[%clk 0:00:57.5]} 32... Rfa8 {[%clk 0:01:26]} 33. g4 {[%clk 0:00:55.2]}
33... Ra2 {[%clk 0:01:20.8]} 34. Qf3 {[%clk 0:00:52.4]} 34... Rf8 {[%clk
0:01:19.5]} 35. Qh3 {[%clk 0:00:44]} 35... Rxf2 {[%clk 0:01:12.9]} 36. Rxf2
{[%clk 0:00:42.5]} 36... Qxf2 {[%clk 0:01:12.8]} 37. Rf1 {[%clk 0:00:43.2]}
37... Qc2 {[%clk 0:00:56.9]} 38. gxf5 {[%clk 0:00:42.5]} 38... Rxf5 {[%clk
0:00:48.6]} 39. c5 {[%clk 0:00:14]} 39... dxc5 {[%clk 0:00:10.3]} 40. d6 {[%clk
0:00:10.8]} 40... Kf8 {[%clk 0:00:10.1]} 41. Rxf5+ {[%clk 0:00:08.7]} 41... Qxf5
{[%clk 0:00:09.6]} 42. Qxf5+ {[%clk 0:00:03.8]} 42... gxf5 {[%clk 0:00:09.7]}
43. Bh3 {[%clk 0:00:03.9]} 43... f4 {[%clk 0:00:08.5]} 44. Bf5 {[%clk 0:00:04]}
44... Ke8 {[%clk 0:00:05.4]} 45. Kg2 {[%clk 0:00:04.1]} 45... h6 {[%clk
0:00:04.4]} 46. Kf3 {[%clk 0:00:04.5]} 46... Bd4 {[%clk 0:00:03.7]} 47. Ke4
{[%clk 0:00:04.6]} 47... Kd8 {[%clk 0:00:04.3]} 48. h3 {[%clk 0:00:02.6]} 48...
h5 {[%clk 0:00:04.2]} 49. Bg6 {[%clk 0:00:02.8]} 49... h4 {[%clk 0:00:04.6]} 50.
Bf5 {[%clk 0:00:03.7]} 50... Bb2 {[%clk 0:00:04]} 51. Bg4 {[%clk 0:00:04]} 51...
Bd4 {[%clk 0:00:04.1]} 52. Bf5 {[%clk 0:00:04.6]} 52... c4 {[%clk 0:00:04.5]}
53. bxc4 {[%clk 0:00:04.3]} 53... b3 {[%clk 0:00:05.1]} 54. Kd3 {[%clk
0:00:04.5]} 54... b2 {[%clk 0:00:05.1]} 55. Kc2 {[%clk 0:00:04.9]} 55... f3
{[%clk 0:00:04.5]} 56. Be4 {[%clk 0:00:04.4]} 56... f2 {[%clk 0:00:04.6]} 57.
Bg2 {[%clk 0:00:05.3]} 57... e4 {[%clk 0:00:04.9]} 58. Kb1 {[%clk 0:00:04.1]}
58... e3 {[%clk 0:00:04.9]} 59. Bf1 {[%clk 0:00:05]} 59... Bc5 {[%clk
0:00:05.1]} 60. Kc2 {[%clk 0:00:05.4]} 60... Kd7 {[%clk 0:00:04.9]} 61. Kxb2
{[%clk 0:00:05.7]} 61... Kxd6 {[%clk 0:00:04.9]} 62. Kc2 {[%clk 0:00:06.6]}
62... Ke5 {[%clk 0:00:04.8]} 63. Kd3 {[%clk 0:00:07.2]} 63... Kf4 {[%clk
0:00:04.8]} 64. Ke2 {[%clk 0:00:06.4]} 64... Kg3 {[%clk 0:00:05.2]} 65. Kd3
{[%clk 0:00:06]} 65... Kf3 {[%clk 0:00:05.8]} 66. Be2+ {[%clk 0:00:03]} 66...
Kg2 {[%clk 0:00:06.4]} 67. Ke4 {[%clk 0:00:03.5]} 67... f1=Q {[%clk 0:00:05.5]}
68. Bxf1+ {[%clk 0:00:04.4]} 68... Kxf1 {[%clk 0:00:06.2]} 69. Kd5 {[%clk
0:00:04.9]} 69... Ba3 {[%clk 0:00:04.2]} 70. c5 {[%clk 0:00:05]} 70... Bxc5
{[%clk 0:00:04.4]} 71. Kxc5 {[%clk 0:00:05.9]} 71... e2 {[%clk 0:00:05.2]} 0-1

[Event "Late-Titled-Tuesday-Blitz-February-06-2024"]
[Site "Chess.com"]
[Date "2024.02.06"]
[Round "5"]
[White "Orest_Vovk"]
[Black "cukricek"]
[Result "1-0"]
[WhiteElo "2584"]
[BlackElo "2394"]
[TimeControl "180+1"]
[EndTime "14:56:46 PST"]
[Termination "Orest_Vovk won by resignation"]

1. h4 {[%clk 0:01:24.2]} 1... d5 {[%clk 0:02:55.4]} 2. h5 {[%clk 0:01:24.3]}
2... e5 {[%clk 0:02:51.8]} 3. h6 {[%clk 0:01:23.2]} 3... Nxh6 {[%clk 0:02:51.1]}
4. d4 {[%clk 0:01:22.7]} 4... e4 {[%clk 0:02:48.1]} 5. Bxh6 {[%clk 0:01:22.6]}
5... gxh6 {[%clk 0:02:48.8]} 6. e3 {[%clk 0:01:23.5]} 6... c6 {[%clk 0:02:43.1]}
7. c4 {[%clk 0:01:23.4]} 7... Be6 {[%clk 0:02:42.5]} 8. Qb3 {[%clk 0:01:21.2]}
8... Qb6 {[%clk 0:02:41.3]} 9. Nc3 {[%clk 0:01:17.7]} 9... Nd7 {[%clk 0:02:34]}
10. Nh3 {[%clk 0:01:15.6]} 10... Bg7 {[%clk 0:02:27.5]} 11. Nf4 {[%clk
0:01:13.8]} 11... Nf6 {[%clk 0:02:18.6]} 12. Nh5 {[%clk 0:01:08.7]} 12... Nxh5
{[%clk 0:02:17]} 13. Rxh5 {[%clk 0:01:09.6]} 13... f5 {[%clk 0:02:17.2]} 14.
cxd5 {[%clk 0:01:04.8]} 14... cxd5 {[%clk 0:02:16.9]} 15. Qxb6 {[%clk
0:00:57.4]} 15... axb6 {[%clk 0:02:16.6]} 16. Bb5+ {[%clk 0:00:55.7]} 16... Kf7
{[%clk 0:02:16.8]} 17. Ne2 {[%clk 0:00:55.8]} 17... Rhc8 {[%clk 0:02:09.1]} 18.
Kd2 {[%clk 0:00:48.5]} 18... Rc7 {[%clk 0:02:04.8]} 19. Nf4 {[%clk 0:00:37.2]}
19... Rac8 {[%clk 0:02:04.6]} 20. Ba4 {[%clk 0:00:36.8]} 20... Bf8 {[%clk
0:01:40]} 21. a3 {[%clk 0:00:25.3]} 21... Bg7 {[%clk 0:01:22.4]} 22. Bb3 {[%clk
0:00:22.2]} 22... Rd8 {[%clk 0:01:19.4]} 23. Rah1 {[%clk 0:00:19.9]} 23... Rc6
{[%clk 0:01:14]} 24. Rxh6 {[%clk 0:00:16.9]} 24... Bxh6 {[%clk 0:01:13.2]} 25.
Rxh6 {[%clk 0:00:17.8]} 25... Rd7 {[%clk 0:00:52.5]} 26. Rxh7+ {[%clk
0:00:12.4]} 26... Ke8 {[%clk 0:00:50]} 27. Rh8+ {[%clk 0:00:07.6]} 27... Kf7
{[%clk 0:00:50.3]} 28. Rh6 {[%clk 0:00:06.3]} 28... Rcd6 {[%clk 0:00:38.7]} 29.
g3 {[%clk 0:00:05.4]} 29... Re7 {[%clk 0:00:36.2]} 30. Rh7+ {[%clk 0:00:03.5]}
30... Kf8 {[%clk 0:00:35.8]} 31. Rh5 {[%clk 0:00:03.4]} 31... Kf7 {[%clk
0:00:35.2]} 32. Nxe6 {[%clk 0:00:02.8]} 32... Kxe6 {[%clk 0:00:34]} 33. Rh6+
{[%clk 0:00:02.8]} 33... Kd7 {[%clk 0:00:33.5]} 34. Rh5 {[%clk 0:00:03.1]} 34...
Rf7 {[%clk 0:00:33.8]} 35. Rh8 {[%clk 0:00:02.9]} 35... Ke6 {[%clk 0:00:32.9]}
36. Re8+ {[%clk 0:00:02.8]} 36... Re7 {[%clk 0:00:32.5]} 37. Rf8 {[%clk
0:00:02.3]} 37... Rf7 {[%clk 0:00:31.5]} 38. Re8+ {[%clk 0:00:02.1]} 38... Re7
{[%clk 0:00:31.9]} 39. Rh8 {[%clk 0:00:02.8]} 39... Rc6 {[%clk 0:00:28.6]} 40.
Rh6+ {[%clk 0:00:02.3]} 40... Kd7 {[%clk 0:00:29.1]} 41. Rh5 {[%clk 0:00:02.5]}
41... Ke6 {[%clk 0:00:24.6]} 42. g4 {[%clk 0:00:02.8]} 42... Rf7 {[%clk
0:00:20.6]} 43. Rxf5 {[%clk 0:00:02.8]} 43... Rxf5 {[%clk 0:00:20.7]} 44. gxf5+
{[%clk 0:00:03.7]} 44... Kxf5 {[%clk 0:00:21.1]} 45. Bxd5 {[%clk 0:00:02.6]}
45... Rc7 {[%clk 0:00:20.9]} 46. f3 {[%clk 0:00:02.7]} 46... exf3 {[%clk
0:00:20.1]} 47. Bxf3 {[%clk 0:00:03.6]} 47... Re7 {[%clk 0:00:15.6]} 48. Be2
{[%clk 0:00:03.8]} 48... Ke4 {[%clk 0:00:14.2]} 49. Bd3+ {[%clk 0:00:04.7]}
49... Kf3 {[%clk 0:00:14.5]} 50. e4 {[%clk 0:00:05.1]} 50... Kf4 {[%clk
0:00:14.9]} 51. e5 {[%clk 0:00:05.3]} 51... Rd7 {[%clk 0:00:14.2]} 52. Kc3
{[%clk 0:00:04.7]} 52... Ke3 {[%clk 0:00:14.5]} 53. Bc4 {[%clk 0:00:04.5]} 53...
Rxd4 {[%clk 0:00:14.3]} 54. e6 {[%clk 0:00:04.3]} 54... Re4 {[%clk 0:00:11.8]}
55. Kb4 {[%clk 0:00:04.2]} 55... Kd4 {[%clk 0:00:11.3]} 56. Kb5 {[%clk
0:00:03.8]} 56... Re5+ {[%clk 0:00:11.5]} 57. Kb4 {[%clk 0:00:03.8]} 57... b5
{[%clk 0:00:10.5]} 58. Bb3 {[%clk 0:00:03.9]} 58... b6 {[%clk 0:00:09.4]} 59.
Ba2 {[%clk 0:00:03.6]} 59... Kd3 {[%clk 0:00:08.8]} 60. Bb3 {[%clk 0:00:03.2]}
60... Kd2 {[%clk 0:00:08.9]} 61. a4 {[%clk 0:00:03.1]} 61... bxa4 {[%clk
0:00:08.6]} 62. Kxa4 {[%clk 0:00:04]} 62... Kc1 {[%clk 0:00:08.9]} 63. Ka3
{[%clk 0:00:04.1]} 63... Re2 {[%clk 0:00:08.1]} 64. Bc4 {[%clk 0:00:03.6]} 64...
Re3+ {[%clk 0:00:06.5]} 65. b3 {[%clk 0:00:03.9]} 65... Kc2 {[%clk 0:00:06.1]}
66. Kb4 {[%clk 0:00:04.1]} 66... Kb2 {[%clk 0:00:06.1]} 67. Kb5 {[%clk
0:00:04.1]} 67... Kc3 {[%clk 0:00:02.5]} 68. Kxb6 {[%clk 0:00:04.4]} 68... Kd4
{[%clk 0:00:03.1]} 69. Kc6 {[%clk 0:00:04.5]} 69... Kc3 {[%clk 0:00:02.9]} 70.
Kd7 {[%clk 0:00:04.5]} 70... Kb4 {[%clk 0:00:01.6]} 71. e7 {[%clk 0:00:04.2]}
71... Rxb3 {[%clk 0:00:01.2]} 72. Bxb3 {[%clk 0:00:03.7]} 1-0

[Event "Late-Titled-Tuesday-Blitz-February-06-2024"]
[Site "Chess.com"]
[Date "2024.02.06"]
[Round "5"]
[White "Hamisandwich"]
[Black "Konavets"]
[Result "0-1"]
[WhiteElo "2739"]
[BlackElo "3113"]
[TimeControl "180+1"]
[EndTime "14:56:55 PST"]
[Termination "Konavets won by checkmate"]

1. c3 {[%clk 0:02:57]} 1... g6 {[%clk 0:01:39.5]} 2. g3 {[%clk 0:02:39.7]} 2...
Bg7 {[%clk 0:01:39]} 3. Bg2 {[%clk 0:02:39.5]} 3... Nh6 {[%clk 0:01:39.9]} 4. d4
{[%clk 0:02:36]} 4... O-O {[%clk 0:01:40.2]} 5. Nd2 {[%clk 0:02:23.9]} 5... d6
{[%clk 0:01:37.6]} 6. Nc4 {[%clk 0:02:17.6]} 6... c6 {[%clk 0:01:32.9]} 7. Nf3
{[%clk 0:02:11.4]} 7... Be6 {[%clk 0:01:30.5]} 8. Qd3 {[%clk 0:02:08.2]} 8...
Nd7 {[%clk 0:01:20.1]} 9. Ng5 {[%clk 0:02:02.9]} 9... Bxc4 {[%clk 0:01:19]} 10.
Qxc4 {[%clk 0:02:03.8]} 10... d5 {[%clk 0:01:18.6]} 11. Qb3 {[%clk 0:02:01.3]}
11... e5 {[%clk 0:01:18.8]} 12. Qxb7 {[%clk 0:01:52.8]} 12... exd4 {[%clk
0:01:17.3]} 13. cxd4 {[%clk 0:01:47]} 13... Nf5 {[%clk 0:01:10.8]} 14. Nf3
{[%clk 0:01:41.7]} 14... Nxd4 {[%clk 0:01:04.6]} 15. Nxd4 {[%clk 0:01:40.2]}
15... Bxd4 {[%clk 0:01:05.5]} 16. O-O {[%clk 0:01:38.3]} 16... Ne5 {[%clk
0:00:57.6]} 17. Qb4 {[%clk 0:01:22.6]} 17... Qb6 {[%clk 0:00:52.7]} 18. Qxb6
{[%clk 0:01:17.6]} 18... axb6 {[%clk 0:00:53.6]} 19. e3 {[%clk 0:01:17.7]} 19...
Bc5 {[%clk 0:00:53.2]} 20. Bd2 {[%clk 0:01:09.6]} 20... Nc4 {[%clk 0:00:49.1]}
21. Bc3 {[%clk 0:01:08.4]} 21... b5 {[%clk 0:00:49.8]} 22. b3 {[%clk 0:00:56]}
22... b4 {[%clk 0:00:38]} 23. Bf6 {[%clk 0:00:44.6]} 23... Nb6 {[%clk
0:00:38.1]} 24. Rfc1 {[%clk 0:00:44.3]} 24... Nd7 {[%clk 0:00:37.8]} 25. Bd4
{[%clk 0:00:28.8]} 25... Ra5 {[%clk 0:00:31.2]} 26. Rc2 {[%clk 0:00:26.4]} 26...
Rfa8 {[%clk 0:00:23.9]} 27. Rac1 {[%clk 0:00:26.5]} 27... Bxd4 {[%clk
0:00:23.8]} 28. exd4 {[%clk 0:00:25.7]} 28... Nb8 {[%clk 0:00:23.2]} 29. Re1
{[%clk 0:00:15.4]} 29... Kf8 {[%clk 0:00:20.2]} 30. Ree2 {[%clk 0:00:14.4]}
30... R8a7 {[%clk 0:00:18.6]} 31. h4 {[%clk 0:00:08.6]} 31... h5 {[%clk
0:00:18.5]} 32. Bh3 {[%clk 0:00:08.4]} 32... Re7 {[%clk 0:00:18.7]} 33. Kf1
{[%clk 0:00:05.9]} 33... Ke8 {[%clk 0:00:16.8]} 34. f3 {[%clk 0:00:05.6]} 34...
Kd8 {[%clk 0:00:16.8]} 35. g4 {[%clk 0:00:06.1]} 35... hxg4 {[%clk 0:00:16.8]}
36. fxg4 {[%clk 0:00:07]} 36... Raa7 {[%clk 0:00:14.6]} 37. h5 {[%clk
0:00:05.7]} 37... Rxe2 {[%clk 0:00:09.4]} 38. Kxe2 {[%clk 0:00:06.2]} 38... Ke7
{[%clk 0:00:09.3]} 39. hxg6 {[%clk 0:00:04.6]} 39... fxg6 {[%clk 0:00:09.6]} 40.
g5 {[%clk 0:00:04.8]} 40... Kd6 {[%clk 0:00:10]} 41. Kd3 {[%clk 0:00:03.6]}
41... Rh7 {[%clk 0:00:10.4]} 42. Bg4 {[%clk 0:00:02.8]} 42... Rh4 {[%clk
0:00:10.8]} 43. Rg2 {[%clk 0:00:03.4]} 43... Na6 {[%clk 0:00:11.2]} 44. Be2
{[%clk 0:00:03]} 44... c5 {[%clk 0:00:10.9]} 45. Kd2 {[%clk 0:00:02.8]} 45...
Rxd4+ {[%clk 0:00:09.2]} 46. Ke1 {[%clk 0:00:03.5]} 46... Nc7 {[%clk 0:00:09.8]}
47. Rf2 {[%clk 0:00:04.2]} 47... Ne6 {[%clk 0:00:09.8]} 48. Rf6 {[%clk
0:00:04.6]} 48... Ke5 {[%clk 0:00:10.2]} 49. Rxg6 {[%clk 0:00:04.6]} 49... Re4
{[%clk 0:00:10]} 50. Rg8 {[%clk 0:00:03.9]} 50... Kf4 {[%clk 0:00:10.3]} 51. Re8
{[%clk 0:00:04.6]} 51... Kxg5 {[%clk 0:00:10.1]} 52. Kd2 {[%clk 0:00:04.2]}
52... Rd4+ {[%clk 0:00:09.9]} 53. Kc1 {[%clk 0:00:03.6]} 53... Nf4 {[%clk
0:00:10.8]} 54. Bf1 {[%clk 0:00:03.4]} 54... Kg4 {[%clk 0:00:10.6]} 55. Rf8
{[%clk 0:00:03.5]} 55... Kf3 {[%clk 0:00:10.8]} 56. Bb5 {[%clk 0:00:03.8]} 56...
Ke3 {[%clk 0:00:11.1]} 57. Re8+ {[%clk 0:00:04.3]} 57... Re4 {[%clk 0:00:11.7]}
58. Rxe4+ {[%clk 0:00:04.8]} 58... Kxe4 {[%clk 0:00:12.6]} 59. Kd2 {[%clk
0:00:05.5]} 59... Kd4 {[%clk 0:00:13.1]} 60. Bc6 {[%clk 0:00:05.8]} 60... Ng6
{[%clk 0:00:13.1]} 61. Kc2 {[%clk 0:00:06.3]} 61... Ne5 {[%clk 0:00:13.4]} 62.
Bb7 {[%clk 0:00:07.1]} 62... Ng4 {[%clk 0:00:13.9]} 63. Kb2 {[%clk 0:00:07.7]}
63... Ne3 {[%clk 0:00:13]} 64. a4 {[%clk 0:00:08.5]} 64... Nd1+ {[%clk
0:00:13.5]} 65. Kc2 {[%clk 0:00:08.6]} 65... Nc3 {[%clk 0:00:14.1]} 66. a5
{[%clk 0:00:08.8]} 66... Nb5 {[%clk 0:00:14.4]} 67. Bc6 {[%clk 0:00:09.5]} 67...
Nc7 {[%clk 0:00:12.2]} 68. Bb7 {[%clk 0:00:09.1]} 68... c4 {[%clk 0:00:12.8]}
69. a6 {[%clk 0:00:09.3]} 69... Nb5 {[%clk 0:00:12.7]} 70. Bc6 {[%clk
0:00:09.7]} 70... Na7 {[%clk 0:00:13.3]} 71. Bd7 {[%clk 0:00:09]} 71... c3
{[%clk 0:00:13.2]} 72. Kd1 {[%clk 0:00:07.3]} 72... Ke3 {[%clk 0:00:12.2]} 73.
Kc2 {[%clk 0:00:07.1]} 73... d4 {[%clk 0:00:12.8]} 74. Bf5 {[%clk 0:00:07.8]}
74... Nb5 {[%clk 0:00:12.8]} 75. Bd7 {[%clk 0:00:05.9]} 75... d3+ {[%clk
0:00:12.8]} 76. Kc1 {[%clk 0:00:05.3]} 76... d2+ {[%clk 0:00:13.1]} 77. Kd1
{[%clk 0:00:05.2]} 77... Nd4 {[%clk 0:00:13.7]} 78. Bf5 {[%clk 0:00:05]} 78...
Nxf5 {[%clk 0:00:14.1]} 79. a7 {[%clk 0:00:05.9]} 79... Nd4 {[%clk 0:00:15]} 80.
a8=Q {[%clk 0:00:06.7]} 80... c2# {[%clk 0:00:15.9]} 0-1